[Event "81st Italian Championship 2022"]
[Site "Cagliari"]
[Date "2022.11.20"]
[Round "8.3"]
[White "Moroni, Luca Jr"]
[Black "Sonis, Francesco"]
[Result "1/2-1/2"]
[ECO "D02"]
[WhiteElo "2559"]
[BlackElo "2547"]
[Annotator "TA"]
[PlyCount "207"]
[EventDate "2022.11.12"]
[EventType "tourn"]
[EventCountry "ITA"]
[SourceTitle "playchess.com"]
[Source "ChessBase"]
[SourceQuality "1"]
[TimeControl "40/6000+30:20/3000:900+30"]

{[%evp 11,207,2,0,-2,0,1,21,6,21,11,15,5,20,17,20,14,23,22,34,27,52,25,18,12,20,18,25,1,17,-5,77,24,97,7,53,63,105,105,141,141,141,141,164,150,171,171,178,164,171,171,171,171,178,178,178,177,185,185,185,185,192,178,186,116,170,158,160,158,187,120,175,0,175,179,187,147,175,167,175,167,187,167,175,175,187,169,188,171,177,146,179,139,171,141,181,174,188,178,178,178,178,0,181,178,181,181,181,181,181,158,181,181,181,181,181,170,181,149,181,181,181,181,184,181,181,181,186,181,189,181,181,181,189,189,189,181,189,189,189,149,189,189,189,151,189,189,196,177,177,100,185,106,170,121,171,170,191,170,181,170,170,170,170,163,170,163,163,0,170,170,170,155,170,170,170,170,170,170,170,170,170,170,170,170,170,170,175,170,172,170,175,170,175,170,186,170,187,179]} 1. d4 {[%emt 0:00:04]} Nf6 {[%emt 0:00:45]} 2. Nf3 {[%emt 0:00:05]} d5 {[%emt 0:00:16]} 3. c3 {[%emt 0:00:04]} c6 {[%emt 0:01:16]} 4. Qc2 {[%emt 0:03:52]} g6 {[%emt 0:00:54]} 5. Bf4 {[%emt 0:00:19]} Nh5 {[%emt 0:00:26]} 6. Be5 {[%emt 0:04:56]} f6 {[%emt 0:00:22]} 7. Bxb8 {[%emt 0:01:52]} Bf5 {[%emt 0:01:04]} 8. Qb3 {[%emt 0:03:44]} ({Don't play} 8. e4 Bxe4 9. Qd1 Qxb8 $17) 8... Rxb8 {[%emt 0:00:07]} 9. e3 {[%emt 0:02:42]} Ng7 {[%emt 0:05:53]} (9... e5 {is interesting.} 10. dxe5 fxe5 11. Nxe5 Bg7) 10. Nbd2 {[%emt 0:06:54]} Qb6 {[%emt 0:03:25]} 11. h3 {[%emt 0:08:28]} Bd7 {[%emt 0:07:35]} 12. Bd3 {[%emt 0:06:05]} e6 {[%emt 0:00:39]} 13. O-O {[%emt 0:06:39]} Be7 {[%emt 0:02:11]} 14. e4 {[%emt 0:01:45]} O-O {[%emt 0:03:21]} 15. Rfe1 {[%emt 0:02:10]} Rf7 {[%emt 0:00:09]} 16. Qxb6 {[%emt 0:07:51]} axb6 {[%emt 0:00:10]} 17. a4 {[%emt 0:00:05]} Ra8 {[%emt 0:02:09]} 18. b4 {[%emt 0:03:07]} Ne8 {[%emt 0:04:05]} 19. Nb3 {[%emt 0:04:40]} Nc7 {[%emt 0:01:03]} 20. a5 {[%emt 0:05:27]} b5 {[%emt 0:01:01]} (20... bxa5 $11 21. Nxa5 b6) 21. h4 {[%emt 0:04:49]} ({White should try} 21. e5 $16) 21... Kg7 {[%emt 0:02:22]} (21... dxe4 $11 22. Bxe4 Bd6) 22. g3 {[%emt 0:02:26]} (22. e5 $16) 22... Raf8 {[%emt 0:01:37]} (22... dxe4 $11 23. Bxe4 Bd6) 23. e5 $14 {[%emt 0:04:26]} Bc8 {[%emt 0:01:15]} 24. Rf1 {[%emt 0:03:08]} f5 {[%emt 0:00:12]} 25. Ng5 {[%emt 0:00:22]} Bxg5 {[%emt 0:00:57]} 26. hxg5 {[%emt 0:00:02]} Re7 {[%emt 0:03:05]} 27. Kg2 {[%emt 0:01:22]} Rff7 {[%emt 0:00:05]} 28. Rh1 {[%emt 0:01:38]} Kf8 {[%emt 0:00:05]} 29. Rh6 {[%emt 0:01:14]} Ke8 {[%emt 0:00:05]} 30. Rah1 {[%emt 0:00:46]} Kd8 {[%emt 0:00:12]} 31. Kf3 {[%emt 0:02:12]} Rg7 {[%emt 0:00:27]} 32. Ke3 {[%emt 0:00:09]} Rgf7 {[%emt 0:00:15]} 33. Nc1 {[%emt 0:00:58]} Bd7 {[%emt 0:00:23]} 34. Ne2 {[%emt 0:00:23]} Kc8 {[%emt 0:00:07]} 35. Nf4 {[%emt 0:00:32]} Rg7 {[%emt 0:00:05]} 36. f3 {[%emt 0:00:42]} Kb8 {[%emt 0:00:05]} 37. g4 {[%emt 0:00:23]} (37. Be2 $18) 37... Ka7 {[%emt 0:00:06]} (37... fxg4 $16 38. fxg4 Rgf7) 38. Bb1 {[%emt 0:02:34]} Bc8 {[%emt 0:00:19]} 39. Bc2 {[%emt 0:00:08]} Bd7 {[%emt 0:00:05]} 40. Bd3 {[%emt 0:00:12]} (40. Nd3 $18) 40... Bc8 {[%emt 0:00:09]} (40... fxg4 $16 41. fxg4 Bc8) 41. Bc2 {[%emt 0:57:32]} Bd7 $1 {[%emt 0:49:07]} 42. Nd3 {[%emt 0:00:33]} Bc8 {[%emt 0:00:26]} 43. Kf4 {[%emt 0:00:00]} Na6 {[%emt 0:00:12]} 44. R6h2 {[%emt 0:03:04]} Kb8 {[%emt 0:00:00]} 45. Re1 {[%emt 0:01:48]} Kc7 {[%emt 0:00:16]} 46. Rhe2 {[%emt 0:00:58]} Re8 {[%emt 0:00:33]} 47. Rh1 {[%emt 0:05:05]} Ree7 {[%emt 0:00:00]} 48. Bb3 {[%emt 0:00:37]} Kd8 {[%emt 0:00:53]} 49. Rhe1 {[%emt 0:00:00]} Kc7 {[%emt 0:00:00]} 50. Ba2 {[%emt 0:00:00]} Re8 {[%emt 0:00:00]} 51. Re3 {[%emt 0:00:00]} Ree7 {[%emt 0:00:00]} 52. Kg3 {[%emt 0:00:00]} Kd7 {[%emt 0:00:00]} 53. Bb3 {[%emt 0:00:00]} Re8 {[%emt 0:00:00]} 54. Kf4 {[%emt 0:00:00]} Kc7 {[%emt 0:00:00]} 55. Rh1 {[%emt 0:00:00]} Ree7 {[%emt 0:00:00]} 56. Re2 {[%emt 0:00:00]} Kd8 $1 {[%emt 0:00:00]} 57. Reh2 {[%emt 0:00:00]} Nc7 {[%emt 0:00:00]} 58. Kg3 {[%emt 0:00:00]} Na6 {[%emt 0:00:00]} 59. Rh6 {[%emt 0:00:00]} Nc7 {[%emt 0:00:00]} 60. Nf4 {[%emt 0:00:00]} Bd7 {[%emt 0:00:00]} 61. R1h2 {[%emt 0:00:00]} Kc8 {[%emt 0:00:00]} 62. Nd3 {[%emt 0:00:00]} Kd8 {[%emt 0:00:00]} 63. Ne1 {[%emt 0:00:00]} Bc8 {[%emt 0:00:00]} 64. Ng2 {[%emt 0:00:00]} Bd7 {[%emt 0:00:00]} 65. Bc2 {[%emt 0:00:00]} Bc8 {[%emt 0:00:00]} 66. Bd3 {[%emt 0:00:00]} Bd7 {[%emt 0:00:00]} 67. Ne3 {[%emt 0:00:00]} Ref7 {[%emt 0:00:00]} 68. f4 {[%emt 0:00:00]} Bc8 {[%emt 0:00:00]} 69. Rh1 {[%emt 0:00:00]} Ke7 {[%emt 0:00:00]} 70. R6h2 {[%emt 0:00:00]} Kf8 {[%emt 0:00:00]} 71. Ra1 {[%emt 0:00:00]} Kg8 {[%emt 0:00:00]} 72. Rha2 {[%emt 0:00:00]} Rf8 {[%emt 0:00:00]} 73. Ra3 {[%emt 0:00:00]} Re7 {[%emt 0:00:00]} 74. Be2 {[%emt 0:00:00]} Ree8 {[%emt 0:00:00]} 75. Nd1 {[%emt 0:00:00]} Re7 {[%emt 0:00:00]} 76. Nf2 {[%emt 0:00:00]} Kg7 {[%emt 0:00:00]} 77. R3a2 {[%emt 0:00:00]} Kg8 {[%emt 0:00:00]} 78. Nd3 {[%emt 0:00:00]} Kg7 {[%emt 0:00:00]} 79. gxf5 {[%emt 0:00:00]} exf5 {[%emt 0:00:00] [#]} 80. Nc5 {[%emt 0:00:00]} (80. Rh1 $1 $18) 80... Na6 {[%emt 0:00:00]} (80... Rh8 $16) 81. Nb3 {[%emt 0:00:00]} (81. Nxa6 $18 {And now Nc5 would win.} bxa6 82. Rh1) 81... Be6 {[%emt 0:00:00]} (81... Rh8 $16) 82. Bd3 {[%emt 0:00:00]} (82. Rh1 $18) 82... Kg8 {[%emt 0:00:00]} (82... Rh8 $16 {is a better defense.}) 83. Rh2 {[%emt 0:00:00]} Rff7 {[%emt 0:00:00]} 84. Nd2 {[%emt 0:00:00]} Rf8 {[%emt 0:00:00]} 85. Nf1 {[%emt 0:00:00]} Rg7 {[%emt 0:00:00]} 86. Ne3 {[%emt 0:00:00]} Nc7 {[%emt 0:00:00]} 87. Rah1 {[%emt 0:00:00]} Rff7 {[%emt 0:00:00]} 88. Rh6 {[%emt 0:00:00]} Rf8 {[%emt 0:00:00]} 89. R6h2 {[%emt 0:00:00]} Rff7 $1 {[%emt 0:00:00]} 90. Nd1 {[%emt 0:00:00]} Rf8 {[%emt 0:00:00]} 91. Bc2 {[%emt 0:00:00]} Rff7 {[%emt 0:00:00]} 92. Nf2 {[%emt 0:00:00]} Rf8 {[%emt 0:00:00]} 93. Kf3 {[%emt 0:00:00]} Re8 {[%emt 0:00:00]} 94. Ke3 {[%emt 0:00:00]} Rf8 {[%emt 0:00:00]} 95. Nd3 {[%emt 0:00:00]} Bc8 {[%emt 0:00:00]} 96. Nc5 {[%emt 0:00:00]} Re7 {[%emt 0:00:00]} 97. Bb1 {[%emt 0:00:00]} Rg7 {[%emt 0:00:00]} 98. Nd3 {[%emt 0:00:05]} Be6 {[%emt 0:00:00]} 99. Ne1 {[%emt 0:00:07]} Rff7 {[%emt 0:00:00]} 100. Bd3 {[%emt 0:00:03]} Rf8 {[%emt 0:00:00]} 101. Nc2 {[%emt 0:00:03]} Rff7 {[%emt 0:00:00]} 102. Kf3 {[%emt 0:00:04]} Rf8 {[%emt 0:00:00]} 103. Kg3 {[%emt 0:00:03]} Rff7 {[%emt 0:00:00]} 104. Ne3 {[%emt 0:00:04]} 1/2-1/2

[Event "81st Italian Championship 2022"]
[Site "Cagliari"]
[Date "2022.11.20"]
[Round "8.4"]
[White "Lettieri, Giuseppe"]
[Black "David, Alberto"]
[Result "1/2-1/2"]
[ECO "D77"]
[WhiteElo "2427"]
[BlackElo "2517"]
[Annotator "TA"]
[PlyCount "53"]
[EventDate "2022.11.12"]
[EventType "tourn"]
[EventCountry "ITA"]
[SourceTitle "playchess.com"]
[Source "ChessBase"]
[SourceQuality "1"]
[TimeControl "40/6000+30:20/3000:900+30"]

{[%evp 15,53,32,31,28,45,41,41,17,39,31,41,18,44,70,75,68,79,89,70,51,52,59,58,52,57,56,57,64,73,60,64,59,63,60,79,0,71,0,80,0]} 1. Nf3 {[%emt 0:00:02]} d5 {[%emt 0:01:42]} 2. g3 {[%emt 0:00:06]} Nf6 {[%emt 0:01:34]} 3. Bg2 {[%emt 0:00:05]} g6 {[%emt 0:06:01]} 4. O-O {[%emt 0:00:31]} Bg7 {[%emt 0:00:23]} 5. d4 {[%emt 0:00:06]} O-O {[%emt 0:00:26]} 6. c4 {[%emt 0:00:20]} dxc4 {[%emt 0:00:22]} 7. Na3 {[%emt 0:00:15]} c3 {[%emt 0:00:38] 7...c5 is the fancy move.} 8. bxc3 {[%emt 0:00:10]} c5 {[%emt 0:00:06]} 9. Bb2 {[%emt 0:00:27] D77: Fianchetto Grünfeld: 6 0-0: Replies other than 6...c6.} Nc6 {[%emt 0:03:43]} 10. Re1 {[%emt 0:00:14]} cxd4 {[%emt 0:12:53]} 11. cxd4 {[%emt 0:00:40] White is slightly better.} Qb6 {[%emt 0:00:04]} 12. Nc4 {[%emt 0:04:14]} Qa6 {[%emt 0:01:32]} 13. Ncd2 {[%emt 0:20:41] [#]} e5 $146 {[%emt 0:17:37]} ({Predecessor:} 13... Rd8 14. e4 Ng4 15. Bf1 b5 16. e5 Qb6 17. h3 Nh6 18. a4 b4 19. Nc4 Qc7 {1-0 (30) Wimmer,J (2264)-Hubacek,O (2206) LSS email 2011}) 14. Nxe5 {[%emt 0:05:10]} Nxe5 {[%emt 0:00:12]} 15. dxe5 {[%emt 0:00:01]} Ng4 {[%emt 0:00:06]} 16. Nf3 {[%emt 0:01:51]} Qa5 {[%emt 0:00:14][%cal Rg4e5]} 17. Qb3 {[%emt 0:14:34] Bc3 is the strong threat.} Nxe5 {[%emt 0:04:14]} 18. Nxe5 {[%emt 0:01:07]} Bxe5 {[%emt 0:00:05]} 19. Bxe5 {[%emt 0:00:11]} Qxe5 {[%emt 0:00:04]} 20. Bxb7 {[%emt 0:04:59]} Rb8 {[%emt 0:01:35]} 21. Qd5 {[%emt 0:00:10]} Qe7 {[%emt 0:00:38]} 22. Bxc8 {[%emt 0:17:09] White is more active.} Rfxc8 {[%emt 0:00:04]} 23. Rad1 {[%emt 0:15:05]} Rd8 {[%emt 0:02:47]} 24. Qc4 {[%emt 0:01:41]} Rdc8 {[%emt 0:00:08]} 25. Qd5 {[%emt 0:06:47]} Rd8 $1 {[%emt 0:00:04]} 26. Qc4 {[%emt 0:00:11]} Rdc8 $1 {[%emt 0:00:03]} 27. Qd5 {[%emt 0:03:15] Weighted Error Value: White=0.15 (very precise) /Black=0.04 (flawless)} (27. Qd3 $16) 1/2-1/2

[Event "81st Italian Championship 2022"]
[Site "Cagliari"]
[Date "2022.11.20"]
[Round "8.5"]
[White "Carnicelli, Valerio"]
[Black "Basso, Pier Luigi"]
[Result "0-1"]
[ECO "B92"]
[WhiteElo "2325"]
[BlackElo "2503"]
[Annotator "TA"]
[PlyCount "88"]
[EventDate "2022.11.12"]
[EventType "tourn"]
[EventCountry "ITA"]
[SourceTitle "playchess.com"]
[Source "ChessBase"]
[SourceQuality "1"]
[TimeControl "40/6000+30:20/3000:900+30"]

{[%evp 15,88,-4,0,-12,0,-20,-18,-23,-27,-29,-27,-44,-20,-19,-11,-16,-13,-20,-18,-56,-21,-83,-74,-85,-70,-97,-97,-102,-91,-101,-102,-100,-88,-133,-118,-142,-138,-129,-83,-197,-191,-177,-189,-189,-174,-206,-207,-229,-212,-227,-232,-252,-205,-205,-199,-186,-187,-247,-202,-243,-233,-246,-238,-246,-244,-237,-241,-241,-237,-308,-291,-393,-381,-286,-197]} 1. e4 {[%emt 0:00:02]} c5 {[%emt 0:00:09]} 2. Nf3 {[%emt 0:00:05]} d6 {[%emt 0:00:04]} 3. d4 {[%emt 0:00:15]} cxd4 {[%emt 0:00:07]} 4. Nxd4 {[%emt 0:00:04]} Nf6 {[%emt 0:00:07]} 5. Nc3 {[%emt 0:00:04]} a6 {[%emt 0:00:04]} 6. Be2 {[%emt 0:00:13]} e5 {[%emt 0:00:47]} 7. Nf3 {[%emt 0:00:04][%cal Bd4f3,Bf3d2,Bd2f1][%mdl 32]} Be7 {[%emt 0:00:55]} 8. Bg5 {[%emt 0:00:10]} Nbd7 {[%emt 0:01:02]} 9. O-O {[%emt 0:06:48] B92: Sicilian Najdorf: 6 Be2.} b5 {[%emt 0:02:07]} 10. Bxf6 {[%emt 0:09:33]} Nxf6 {[%emt 0:00:16] [#]} 11. Nd2 $146 {[%emt 0:02:19] The position is equal.} ({Predecessor:} 11. a4 b4 12. Nd5 Nxe4 13. Nxb4 Bb7 14. Bc4 Nf6 15. Nd5 O-O 16. Nxf6+ Bxf6 17. Bd5 {½-½ (103) Nogerbek,K (2328)-Sarana,A (2649) Chess.com INT 2021}) 11... Bb7 {[%emt 0:11:04]} 12. Bf3 {[%emt 0:04:15]} O-O {[%emt 0:02:08]} 13. Re1 {[%emt 0:07:19]} Qc7 {[%emt 0:12:06]} 14. a3 {[%emt 0:02:10]} Qc5 {[%emt 0:06:50]} 15. Nf1 {[%emt 0:07:35]} Rfc8 {[%emt 0:01:38]} 16. Ne3 {[%emt 0:01:03]} a5 {[%emt 0:00:41]} 17. Re2 {[%emt 0:11:40]} b4 {[%emt 0:02:14]} 18. Ncd5 {[%emt 0:04:35]} (18. Na4 $11 Qc7 19. c4) 18... Nxd5 $17 {[%emt 0:00:53]} 19. Nxd5 {[%emt 0:00:05]} Bxd5 {[%emt 0:02:08]} 20. Qxd5 {[%emt 0:00:22]} Qxd5 {[%emt 0:00:07]} 21. exd5 {[%emt 0:00:04]} f5 {[%emt 0:00:27] Against Bg4} 22. g4 {[%emt 0:03:43] [#]} g6 $1 {[%emt 0:03:12]} 23. Bg2 {[%emt 0:02:40]} Kf7 {[%emt 0:01:47]} 24. Bh3 {[%emt 0:07:58] [#]} Kf6 {[%emt 0:03:25]} 25. f4 {[%emt 0:05:11]} e4 {[%emt 0:04:11]} 26. Rg2 {[%emt 0:02:33]} Rab8 {[%emt 0:11:52]} (26... bxa3 $142 27. Rxa3 Rc5 28. gxf5 gxf5) 27. a4 {[%emt 0:11:29]} (27. axb4 $17 {was worth a try.} Rxb4 28. g5+ Kg7 29. c3) 27... Rc5 $19 {[%emt 0:07:57]} 28. gxf5 {[%emt 0:00:05]} gxf5 {[%emt 0:00:18]} 29. Rd1 {[%emt 0:00:38]} Rcc8 {[%emt 0:01:34]} 30. Rdd2 {[%emt 0:06:25]} Rg8 {[%emt 0:09:25] Inhibits Rg5.} 31. Rg3 {[%emt 0:00:04]} Rg6 {[%emt 0:00:55]} 32. Kf1 {[%emt 0:03:55]} Rh6 {[%emt 0:02:04]} 33. Kg2 {[%emt 0:03:37]} Rc8 {[%emt 0:02:59]} 34. Rg5 {[%emt 0:03:06]} Rg6 {[%emt 0:00:21]} 35. Rf2 {[%emt 0:00:06]} h6 {[%emt 0:03:24]} ({Inferior is} 35... Rxg5+ 36. fxg5+ Ke5 37. Bxf5 $11) 36. Rg3 {[%emt 0:00:25]} (36. Rxg6+ $142 Kxg6 37. Kf1) 36... Rc5 {[%emt 0:00:18]} 37. Rd2 {[%emt 0:00:09]} Bd8 {[%emt 0:02:51]} 38. Kf1 {[%emt 0:03:35]} Bb6 {[%emt 0:02:01]} 39. Ke2 {[%emt 0:00:06]} Rc7 {[%emt 0:00:44]} 40. Kd1 {[%emt 0:00:27]} Rxg3 {[%emt 0:09:02]} 41. hxg3 {[%emt 0:49:07]} h5 {[%emt 0:49:02]} ({Avoid the trap} 41... Rg7 $2 42. Rg2) 42. Rg2 {[%emt 0:00:00]} Bd4 {[%emt 0:00:00]} 43. Kc1 {[%emt 0:00:00]} Rg7 {[%emt 0:00:00]} 44. Kb1 {[%emt 0:00:00]} Be3 {[%emt 0:00:00] Weighted Error Value: White=0.22 (precise) /Black=0.08 (flawless)} 0-1

[Event "81st Italian Championship 2022"]
[Site "Cagliari"]
[Date "2022.11.20"]
[Round "8.6"]
[White "Godena, Michele"]
[Black "Brunello, Sabino"]
[Result "1/2-1/2"]
[ECO "B22"]
[WhiteElo "2463"]
[BlackElo "2518"]
[Annotator "TA"]
[PlyCount "185"]
[EventDate "2022.11.12"]
[EventType "tourn"]
[EventCountry "ITA"]
[SourceTitle "playchess.com"]
[Source "ChessBase"]
[SourceQuality "1"]
[TimeControl "40/6000+30:20/3000:900+30"]

{[%evp 9,184,0,0,0,0,0,4,14,27,0,4,0,0,0,0,0,0,0,0,-13,-21,-51,-58,-55,-57,-52,-8,-11,-14,-16,-1,-18,0,-38,-9,-18,15,15,15,13,14,13,13,12,27,19,25,12,12,12,12,12,12,15,39,15,36,36,36,36,36,36,36,36,36,36,36,0,0,0,0,0,0,0,0,0,0,0,0,0,0,0,0,0,0,0,0,0,47,47,47,47,47,47,47,47,47,47,47,47,47,47,47,47,47,47,47,47,71,47,47,47,47,47,47,0,47,47,47,47,47,47,47,0,47,47,47,0,47,0,0,0,0,0,0,0,0,0,0,0,0,0,0,0,0,0,0,0,0,0,0,0,0,0,0,0,0,0,0,0,0,0,0,0,0,0,0,0,0,0,0,0,0,0,0,0,0]} 1. e4 {[%emt 0:00:03]} c5 {[%emt 0:00:09]} 2. c3 {[%emt 0:05:36]} d5 {[%emt 0:00:18]} 3. exd5 {[%emt 0:00:10]} Qxd5 {[%emt 0:00:03]} 4. d4 {[%emt 0:00:23]} g6 {[%emt 0:00:10]} 5. Qf3 {[%emt 0:24:44]} Qe6+ {[%emt 0:13:37]} 6. Be3 {[%emt 0:00:25] B22: Sicilian: 2 c3.} cxd4 {[%emt 0:08:05]} 7. cxd4 {[%emt 0:00:07]} Nf6 {[%emt 0:00:10] [#]} 8. Nc3 $146 {[%emt 0:04:08]} ({Predecessor:} 8. Bb5+ Nbd7 9. Nc3 Bg7 10. h3 O-O 11. Nge2 a6 12. d5 Qd6 13. Bxd7 Bxd7 14. O-O {0-1 (43) Perlitz,S (2094)-Kaufeld,J (2238) Frankfurt 2011}) 8... Qb6 {[%emt 0:26:21]} 9. Bb5+ {[%emt 0:09:51]} (9. Rc1 $5 {[%cal Rc3d5]} Bg4 10. Bb5+ Nbd7 11. Qf4 $11) 9... Bd7 {[%emt 0:17:26]} 10. Bxd7+ {[%emt 0:01:51]} Nbxd7 {[%emt 0:00:21]} 11. Nge2 {[%emt 0:00:20]} Bg7 {[%emt 0:02:12]} 12. O-O {[%emt 0:01:19]} O-O {[%emt 0:03:08]} 13. Rfd1 {[%emt 0:12:10]} Rfd8 {[%emt 0:03:16]} 14. Rd2 {[%emt 0:03:41]} Qa6 {[%emt 0:08:37]} 15. Ne4 {[%emt 0:30:22]} Nxe4 {[%emt 0:13:28]} 16. Qxe4 {[%emt 0:00:02]} e6 {[%emt 0:00:07]} 17. Bg5 {[%emt 0:03:19]} Bf6 {[%emt 0:01:18]} 18. Qf4 {[%emt 0:02:06]} Bxg5 {[%emt 0:01:18]} 19. Qxg5 {[%emt 0:00:04]} Kg7 {[%emt 0:00:38]} 20. Nf4 {[%emt 0:02:59]} Qd6 {[%emt 0:01:55]} 21. Rad1 {[%emt 0:03:25]} (21. Nh5+ $5 Kg8 22. Ng3 $11) 21... Rac8 {[%emt 0:02:57]} (21... h6 $5 {[%cal Rh6g5]} 22. Nh5+ Kg8 23. Nf6+ Nxf6 24. Qxf6 Rac8 $15) 22. h3 {[%emt 0:02:32]} Nf6 {[%emt 0:01:54] [#] Threatens to win with ...Ne4.} 23. Qe5 {[%emt 0:00:26][%cal Of4h5] Against Ne4} h6 {[%emt 0:02:31]} 24. Rd3 {[%emt 0:00:05][%cal Of4h5]} Qxe5 $1 {[%emt 0:01:37]} 25. dxe5 {[%emt 0:00:05]} Nd5 {[%emt 0:00:14]} 26. Nxd5 {[%emt 0:00:05]} Rxd5 {[%emt 0:00:25]} 27. Rxd5 {[%emt 0:00:03]} exd5 {[%emt 0:00:04]} 28. Rxd5 $11 {[%emt 0:00:04][%mdl 4096] Endgame Strongly threatening Rd7. KR-KR} Rc1+ {[%emt 0:00:34]} 29. Kh2 {[%emt 0:00:05] Black must now prevent Rd7.} Rc2 {[%emt 0:00:04][%csl LRb2,LRf2]} 30. Rb5 {[%emt 0:00:52]} b6 {[%emt 0:01:32]} 31. Kg3 {[%emt 0:02:50]} Kf8 {[%emt 0:00:13]} 32. a4 {[%emt 0:00:57]} Ke7 {[%emt 0:00:36]} 33. a5 {[%emt 0:00:13]} bxa5 {[%emt 0:01:03]} 34. Rxa5 {[%emt 0:00:19]} Rxb2 {[%emt 0:00:08]} 35. Rxa7+ {[%emt 0:00:05]} Ke6 {[%emt 0:00:07]} 36. f4 {[%emt 0:00:53]} h5 {[%emt 0:00:14][%cal Bh6h5,Bh5h4][%mdl 32]} 37. Ra6+ {[%emt 0:00:29]} Ke7 {[%emt 0:00:06][%cal Oh5h4]} 38. Rf6 {[%emt 0:01:30]} h4+ {[%emt 0:01:37]} 39. Kf3 {[%emt 0:00:42]} ({Much less strong is} 39. Kxh4 $6 Rxg2 40. Ra6 Rg1 $16) 39... Rb3+ {[%emt 0:00:18]} 40. Kf2 {[%emt 0:00:32]} Rb2+ {[%emt 0:00:06]} 41. Kf3 {[%emt 0:00:06]} Rb3+ {[%emt 0:00:03]} 42. Kg4 {[%emt 0:03:06]} Rg3+ {[%emt 0:00:16]} 43. Kxh4 {[%emt 0:00:00]} Rxg2 {[%emt 0:00:00]} 44. Ra6 {[%emt 0:00:00]} Kf8 {[%emt 0:17:52]} 45. Ra3 {[%emt 0:04:59]} Kg7 {[%emt 0:02:24]} 46. Rg3 {[%emt 0:00:36]} Re2 {[%emt 0:03:27]} 47. Kg5 {[%emt 0:01:15]} Re1 {[%emt 0:03:34]} 48. h4 {[%emt 0:02:24]} Rf1 {[%emt 0:07:26]} (48... f6+ $11 {feels stronger.} 49. exf6+ Kf7) 49. h5 $1 $14 {[%emt 0:02:06]} gxh5 {[%emt 0:00:03]} 50. Kxh5+ {[%emt 0:00:00]} Kf8 {[%emt 0:00:00]} 51. Kg4 $1 {[%emt 0:00:48]} Re1 {[%emt 0:06:30][%cal Of7f6]} 52. Kg5 {[%emt 0:07:12]} Ke7 {[%emt 0:00:18][%cal Of7f6]} 53. Kf5 {[%emt 0:02:00] Prevents f6.} Ra1 {[%emt 0:01:06]} 54. Rb3 {[%emt 0:00:00]} Kf8 {[%emt 0:01:31]} 55. Rb7 {[%emt 0:03:15]} Rg1 {[%emt 0:02:23]} 56. Ra7 {[%emt 0:05:10]} Rb1 {[%emt 0:00:12]} 57. Kg5 {[%emt 0:10:46] [#] And now f5 would win.} Rg1+ {[%emt 0:00:00]} 58. Kf6 $1 {[%emt 0:00:00][%cal Ra7a8]} Rg6+ {[%emt 0:00:00]} 59. Kf5 {[%emt 0:00:00] White is much more active.} Rg1 {[%emt 0:00:00]} 60. Rd7 {[%emt 0:04:21]} Ke8 {[%emt 0:00:00]} 61. Rc7 {[%emt 0:16:42]} Kf8 {[%emt 0:14:22]} 62. Rd7 {[%emt 0:00:15]} Ke8 {[%emt 0:00:04]} 63. Rd6 {[%emt 0:00:11]} Ke7 {[%emt 0:00:13]} 64. Rh6 {[%emt 0:00:43]} Ra1 {[%emt 0:00:14]} 65. Rc6 {[%emt 0:00:00]} Rg1 {[%emt 0:00:00]} 66. Rc7+ {[%emt 0:00:00]} Kf8 $1 {[%emt 0:00:00]} 67. Rc3 {[%emt 0:00:00]} Ra1 {[%emt 0:00:00]} 68. Rg3 {[%emt 0:00:00]} Ke7 {[%emt 0:00:00]} 69. Kg5 {[%emt 0:00:00]} (69. Rd3 $14 {was preferrable.}) 69... f6+ {[%emt 0:00:00] The position is equal.} 70. exf6+ {[%emt 0:00:00]} Kf7 {[%emt 0:00:00]} 71. Re3 {[%emt 0:00:00]} Rg1+ {[%emt 0:00:00]} 72. Kf5 {[%emt 0:00:00]} Ra1 {[%emt 0:00:00]} 73. Re7+ {[%emt 0:00:00]} Kf8 {[%emt 0:00:00]} 74. Rd7 {[%emt 0:00:00]} Rb1 {[%emt 0:00:00]} 75. Ke6 {[%emt 0:03:57]} Re1+ {[%emt 0:00:00]} 76. Kf5 {[%emt 0:00:04]} Rb1 {[%emt 0:00:00]} 77. Ra7 {[%emt 0:02:31]} Rc1 {[%emt 0:00:00]} 78. Ra5 {[%emt 0:00:25]} Kf7 {[%emt 0:00:00]} 79. Re5 {[%emt 0:00:53]} Rb1 {[%emt 0:00:00]} 80. Re7+ {[%emt 0:00:17]} Kf8 {[%emt 0:00:00]} 81. Rd7 {[%emt 0:00:38]} Ra1 {[%emt 0:00:00]} 82. f7 {[%emt 0:00:35]} Ra6 {[%emt 0:00:00]} 83. Kg5 {[%emt 0:00:51]} Rb6 {[%emt 0:00:00]} 84. Kf5 {[%emt 0:00:07]} Ra6 {[%emt 0:00:00]} 85. Ke5 {[%emt 0:00:39]} Rb6 {[%emt 0:00:00]} 86. Rd6 {[%emt 0:00:52]} Rxd6 {[%emt 0:00:00]} 87. Kxd6 {[%emt 0:00:04]} Kxf7 $11 {[%emt 0:00:00] KP-K} 88. Ke5 {[%emt 0:00:03]} Ke7 {[%emt 0:00:00]} 89. f5 {[%emt 0:00:05][%cal Bf4f5,Bf5f6,Bf6f7][%mdl 32]} Kf7 {[%emt 0:00:00]} 90. f6 {[%emt 0:00:04]} Kf8 {[%emt 0:00:00]} 91. Ke6 {[%emt 0:00:04]} Ke8 {[%emt 0:00:00]} 92. f7+ {[%emt 0:00:03]} Kf8 {[%emt 0:00:00]} 93. Kf6 {[%emt 0:00:04] Weighted Error Value: White=0.05 (flawless) /Black=0.06 (flawless)} 1/2-1/2